{"text_format":"3","workbook":"xlsx","n_sheets":2,"sheets":["Formulář nabídky","Přehled nákladů"],"not_rendered":{"charts":1,"images":2,"defined_names":4},"read":"whole","date_system":"1900"}

{"sheet":"Formulář nabídky","index":0,"n_rows":48,"n_cols":7,"rows_kept":48,"merged":[[15,1,25,5],[29,1,31,5],[35,1,37,5],[43,1,45,5]]}
[]
[null,"FORMULÁŘ STAVEBNÍ NABÍDKY",{"$nulls":4}," "]
[]
[]
[null,"INFORMACE O VLASTNÍKOVI",null,null,"INFORMACE O DODAVATELI"]
[null,"Jméno","Petr Karásek",null,"Společnost","Fabrikam, s.r.o."]
[null,"Adresa","Hlavní 1",null,"Jméno","Jan Kotas"]
[null,"Město, stát, PSČ","Brno, 602 00",null,"Adresa","Dopravní 123"]
[null,"Telefon",8885550111,null,"Město, stát, PSČ","Brno, 602 00"]
[null,"E-mail","petr@proseware.com",null,"Telefon",8885550123]
[{"$nulls":4},"E-mail","Jan@fabrikam.com"]
[null,"Název projektu","Schody k úspěchu",null,"Datum dokončení","2013-07-14"]
[]
[null,"ROZSAH PRACÍ"]
[]
[null,"Tady bude rozsah prací projektu. Zadejte sem veškeré požadované specifikace. Tohle je smyšlený projekt sestávající ze stavby velkého schodiště. Ke konstrukci rámu použijeme jen desky o rozměrech 2×4 a 2×8 a nosné držáky. Schody budou vyřezané z materiálu o rozměru 2×4. Nepoužijí se šrouby kratší než 5 cm.  Všechny hřebíky budou minimálně 8 cm dlouhé. Každý schod bude mít nosnost 230 kg. Schody budou v rovině s domem. K domu bude připevněný ochoz. Dodavatel zajistí úklid."]
{"$rows_empty":11}
[null,"NEZAHRNUTO"]
[]
[null,"Nebude se instalovat zábradlí. Pozemní úpravy a nátěr schodů zajistí majitel."]
[]
[]
[]
[null,"NÁVRH SPOLEČNOSTI"]
[]
[null,"Společnost Fabrikam, s.r.o. navrhuje dokončení prací v rozsahu uvedeném výše do 14.7.2013 za cenu 47 643 Kč."]
[]
[]
[]
[null,"Předložil (zástupce společnosti)",{"$nulls":3},"Datum"]
[]
[null,"SOUHLAS VLASTNÍKA"]
[]
[null,"Já, Petr Karásek, souhlasím s rozsahem prací uvedeným výše, navrhovaným datem dokončení 14.7.2013 a cenou 47 643 Kč."]
[]
[]
[]
[null,"Předložil (vlastník domu nebo pověřený zástupce)",{"$nulls":3},"Datum"]

{"sheet":"Přehled nákladů","index":1,"n_rows":47,"n_cols":6,"rows_kept":47,"merged":[[42,3,42,4],[43,3,43,4],[44,3,44,4],[45,3,45,4],[46,3,46,4],[47,3,47,4],[48,3,48,4],[49,3,49,4]]}
[]
[null,"SOUHRN NÁKLADŮ NABÍDKY",{"$nulls":3}," "]
[]
[]
[null,"SEZNAM MATERIÁLU A NÁKLADŮ"]
[]
[null,"Množství","Popis","Náklady","Celkem"," "]
[null,5,"Desky 2×8×10",{"v":6.75,"d":"6.75 Kč"},{"$f":"PoložkyNabídky[Náklady]*PoložkyNabídky[Množství]","v":{"v":33.75,"d":"33.75 Kč"}},{"$f":"_xlfn.RANK.EQ(PoložkyNabídky[[#This Row],[Celkem]],PoložkyNabídky[Celkem])","v":4}]
[null,20,"Desky 2×4×10",{"v":4.97,"d":"4.97 Kč"},{"$f":"PoložkyNabídky[Náklady]*PoložkyNabídky[Množství]","v":{"v":99.39999999999999,"d":"99.40 Kč"}},{"$f":"_xlfn.RANK.EQ(PoložkyNabídky[[#This Row],[Celkem]],PoložkyNabídky[Celkem])","v":2}]
[null,30,"Držáky",{"v":2.49,"d":"2.49 Kč"},{"$f":"PoložkyNabídky[Náklady]*PoložkyNabídky[Množství]","v":{"v":74.7,"d":"74.70 Kč"}},{"$f":"_xlfn.RANK.EQ(PoložkyNabídky[[#This Row],[Celkem]],PoložkyNabídky[Celkem])","v":3}]
[null,2,"Krabice šroubků, 5 cm",{"v":6.67,"d":"6.67 Kč"},{"$f":"PoložkyNabídky[Náklady]*PoložkyNabídky[Množství]","v":{"v":13.34,"d":"13.34 Kč"}},{"$f":"_xlfn.RANK.EQ(PoložkyNabídky[[#This Row],[Celkem]],PoložkyNabídky[Celkem])","v":6}]
[null,2,"Krabice hřebíků, 8 cm",{"v":3.25,"d":"3.25 Kč"},{"$f":"PoložkyNabídky[Náklady]*PoložkyNabídky[Množství]","v":{"v":6.5,"d":"6.50 Kč"}},{"$f":"_xlfn.RANK.EQ(PoložkyNabídky[[#This Row],[Celkem]],PoložkyNabídky[Celkem])","v":7}]
[null,2,"Kožené rukavice",{"v":7.75,"d":"7.75 Kč"},{"$f":"PoložkyNabídky[Náklady]*PoložkyNabídky[Množství]","v":{"v":15.5,"d":"15.50 Kč"}},{"$f":"_xlfn.RANK.EQ(PoložkyNabídky[[#This Row],[Celkem]],PoložkyNabídky[Celkem])","v":5}]
[null,2,"Sazba za práci",{"v":100,"d":"100.00 Kč"},{"$f":"PoložkyNabídky[Náklady]*PoložkyNabídky[Množství]","v":{"v":200,"d":"200.00 Kč"}},{"$f":"_xlfn.RANK.EQ(PoložkyNabídky[[#This Row],[Celkem]],PoložkyNabídky[Celkem])","v":1}]
[{"$nulls":4},{"$f":"PoložkyNabídky[Náklady]*PoložkyNabídky[Množství]","v":0},{"$f":"_xlfn.RANK.EQ(PoložkyNabídky[[#This Row],[Celkem]],PoložkyNabídky[Celkem])","v":8}]
[{"$nulls":4},{"$f":"PoložkyNabídky[Náklady]*PoložkyNabídky[Množství]","v":0},{"$f":"_xlfn.RANK.EQ(PoložkyNabídky[[#This Row],[Celkem]],PoložkyNabídky[Celkem])","v":8}]
[{"$nulls":4},{"$f":"PoložkyNabídky[Náklady]*PoložkyNabídky[Množství]","v":0},{"$f":"_xlfn.RANK.EQ(PoložkyNabídky[[#This Row],[Celkem]],PoložkyNabídky[Celkem])","v":8}]
[{"$nulls":4},{"$f":"PoložkyNabídky[Náklady]*PoložkyNabídky[Množství]","v":0},{"$f":"_xlfn.RANK.EQ(PoložkyNabídky[[#This Row],[Celkem]],PoložkyNabídky[Celkem])","v":8}]
[{"$nulls":4},{"$f":"PoložkyNabídky[Náklady]*PoložkyNabídky[Množství]","v":0},{"$f":"_xlfn.RANK.EQ(PoložkyNabídky[[#This Row],[Celkem]],PoložkyNabídky[Celkem])","v":8}]
[{"$nulls":4},{"$f":"PoložkyNabídky[Náklady]*PoložkyNabídky[Množství]","v":0},{"$f":"_xlfn.RANK.EQ(PoložkyNabídky[[#This Row],[Celkem]],PoložkyNabídky[Celkem])","v":8}]
[{"$nulls":4},{"$f":"PoložkyNabídky[Náklady]*PoložkyNabídky[Množství]","v":0},{"$f":"_xlfn.RANK.EQ(PoložkyNabídky[[#This Row],[Celkem]],PoložkyNabídky[Celkem])","v":8}]
[{"$nulls":4},{"$f":"PoložkyNabídky[Náklady]*PoložkyNabídky[Množství]","v":0},{"$f":"_xlfn.RANK.EQ(PoložkyNabídky[[#This Row],[Celkem]],PoložkyNabídky[Celkem])","v":8}]
[{"$nulls":4},{"$f":"PoložkyNabídky[Náklady]*PoložkyNabídky[Množství]","v":0},{"$f":"_xlfn.RANK.EQ(PoložkyNabídky[[#This Row],[Celkem]],PoložkyNabídky[Celkem])","v":8}]
[{"$nulls":4},{"$f":"PoložkyNabídky[Náklady]*PoložkyNabídky[Množství]","v":0},{"$f":"_xlfn.RANK.EQ(PoložkyNabídky[[#This Row],[Celkem]],PoložkyNabídky[Celkem])","v":8}]
[{"$nulls":4},{"$f":"PoložkyNabídky[Náklady]*PoložkyNabídky[Množství]","v":0},{"$f":"_xlfn.RANK.EQ(PoložkyNabídky[[#This Row],[Celkem]],PoložkyNabídky[Celkem])","v":8}]
[{"$nulls":4},{"$f":"PoložkyNabídky[Náklady]*PoložkyNabídky[Množství]","v":0},{"$f":"_xlfn.RANK.EQ(PoložkyNabídky[[#This Row],[Celkem]],PoložkyNabídky[Celkem])","v":8}]
[{"$nulls":4},{"$f":"PoložkyNabídky[Náklady]*PoložkyNabídky[Množství]","v":0},{"$f":"_xlfn.RANK.EQ(PoložkyNabídky[[#This Row],[Celkem]],PoložkyNabídky[Celkem])","v":8}]
[{"$nulls":4},{"$f":"PoložkyNabídky[Náklady]*PoložkyNabídky[Množství]","v":0},{"$f":"_xlfn.RANK.EQ(PoložkyNabídky[[#This Row],[Celkem]],PoložkyNabídky[Celkem])","v":8}]
[{"$nulls":4},{"$f":"PoložkyNabídky[Náklady]*PoložkyNabídky[Množství]","v":0},{"$f":"_xlfn.RANK.EQ(PoložkyNabídky[[#This Row],[Celkem]],PoložkyNabídky[Celkem])","v":8}]
[{"$nulls":4},{"$f":"PoložkyNabídky[Náklady]*PoložkyNabídky[Množství]","v":0},{"$f":"_xlfn.RANK.EQ(PoložkyNabídky[[#This Row],[Celkem]],PoložkyNabídky[Celkem])","v":8}]
[1,{"$nulls":3},{"$f":"PoložkyNabídky[Náklady]*PoložkyNabídky[Množství]","v":0},{"$f":"_xlfn.RANK.EQ(PoložkyNabídky[[#This Row],[Celkem]],PoložkyNabídky[Celkem])","v":8}]
[2,null,null,"Mezisoučet",{"$f":"SUBTOTAL(109,PoložkyNabídky[Celkem])","v":{"v":443.18999999999994,"d":"443.19 Kč"}},{"$f":"SUBTOTAL(103,PoložkyNabídky[[ ]])","v":24}]
[3,null,null,"Sazba daně",{"v":0.075,"d":"7.50%"}]
[4,null,null,"Daň",{"$f":"SazbaDaně*PoložkyNabídky[[#Totals],[Celkem]]","v":{"v":33.23924999999999,"d":"33.24 Kč"}}]
[5,null,null,"Celkový součet",{"$f":"Daň+PoložkyNabídky[[#Totals],[Celkem]]","v":{"v":476.4292499999999,"d":"476.43 Kč"}}]
[]
[]
[]
[null,"PŘEHLED MATERIÁLU A NÁKLADŮ"]
[]
[]
[null,null,"CELKEM","POZNÁMKY"]
[null,{"$f":"INDEX(PoložkyNabídky[],MATCH(A31,PoložkyNabídky[[ ]],0),2)","v":"Sazba za práci"},{"$f":"INDEX(PoložkyNabídky[],MATCH(A31,PoložkyNabídky[[ ]],0),4)","v":{"v":200,"d":"$200.00"}}]
[null,{"$f":"INDEX(PoložkyNabídky[],MATCH(A32,PoložkyNabídky[[ ]],0),2)","v":"Desky 2×4×10"},{"$f":"INDEX(PoložkyNabídky[],MATCH(A32,PoložkyNabídky[[ ]],0),4)","v":{"v":99.39999999999999,"d":"$99.40"}}]
[null,{"$f":"INDEX(PoložkyNabídky[],MATCH(A33,PoložkyNabídky[[ ]],0),2)","v":"Držáky"},{"$f":"INDEX(PoložkyNabídky[],MATCH(A33,PoložkyNabídky[[ ]],0),4)","v":{"v":74.7,"d":"$74.70"}}]
[null,{"$f":"INDEX(PoložkyNabídky[],MATCH(A34,PoložkyNabídky[[ ]],0),2)","v":"Desky 2×8×10"},{"$f":"INDEX(PoložkyNabídky[],MATCH(A34,PoložkyNabídky[[ ]],0),4)","v":{"v":33.75,"d":"$33.75"}}]
[null,{"$f":"INDEX(PoložkyNabídky[],MATCH(A35,PoložkyNabídky[[ ]],0),2)","v":"Kožené rukavice"},{"$f":"INDEX(PoložkyNabídky[],MATCH(A35,PoložkyNabídky[[ ]],0),4)","v":{"v":15.5,"d":"$15.50"}}]